Cogmind - Beta 16 @@@ ROGUE MODE // 2026.01.04 @ 14:04:03 Player: Oldman Pu Result: Self-destructed Performance ------------- Evolutions (2) 1000 Regions Visited (3) 600 Robots Destroyed (28) 140 Value Destroyed (573) 573 Prototype IDs (1) 20 Alien Tech Used (0) 0 Bonus (0) 0 TOTAL SCORE: 2333 Bonus ------- None Cogmind --------- Core Integrity 349/550 Matter 260/450 Energy 42/100 System Corruption 0% Temperature Cool (10) Movement Core (1450) Ox28 Location -8/Materials Parts ------- > --- POWER (1) -------- (None) > --- PROPULSION (2) --- (None) > --- UTILITY (5) ------ Huge Storage Unit Compact Matter Pod Improved Targeting Computer > --- WEAPON (3) ------- Assault Cannon > --- INVENTORY (25) --- Ion Engine Ion Engine Ion Engine Light Deuterium Engine Advanced Treads Wheel Wheel Wheel Compact Wheel Compact Wheel Compact Wheel Heat Sink High-capacity Battery (250) Light Assault Rifle Light Assault Rifle Light Assault Rifle Light Assault Rifle Improved Light Cannon Peak State ------------ > --- POWER ------------ Improved Ion Engine > --- PROPULSION ------- Wheel Compact Wheel > --- UTILITY ---------- Improved Heat Sink Huge Storage Unit Compact Matter Pod Improved Targeting Computer Medium Armor Plating > --- WEAPON ----------- Field Laser Assault Rifle Enhanced Autogun > --- INVENTORY -------- Ion Engine Ion Engine Ion Engine Light Deuterium Engine Advanced Treads Wheel Wheel Compact Wheel Compact Wheel Compact Wheel Heat Sink High-capacity Battery Assault Rifle Assault Rifle Assault Rifle Light Assault Rifle Light Assault Rifle Light Assault Rifle Light Assault Rifle Improved Light Cannon Assault Cannon [Rating: 25] Favorites ----------- Power Ion Engine Engine Ion Engine Propulsion Wheel Wheel Wheel Utility Huge Storage Unit Device Heat Sink Storage Huge Storage Unit Processor Improved Targeting Computer Protection Medium Armor Plating Weapon Assault Rifle Energy Gun Field Laser Ballistic Gun Assault Rifle Ballistic Cannon Assault Cannon Build | -11 -10 -10 -8 ------- Run | Yrd Mat Sub Mat Slots Evolved 4 | . . . 4 Power . | . . . . Propulsion . | . . . . Utility 3 | . . . 3 Weapon 1 | . . . 1 Parts Attached 30 | 6 10 . 14 Power 4 | 1 2 . 1 Engine 4 | 1 2 . 1 Core . | . . . . Reactor . | . . . . Propulsion 8 | 2 3 . 3 Treads . | . . . . Leg . | . . . . Wheel 8 | 2 3 . 3 Hover . | . . . . Flight . | . . . . Utility 10 | 1 4 . 5 Device 2 | . 1 . 1 Storage 5 | 1 2 . 2 Processor 1 | . . . 1 Hackware . | . . . . Protection 2 | . 1 . 1 Artifact . | . . . . Weapon 8 | 2 1 . 5 Energy Gun 1 | . . . 1 Energy Cannon . | . . . . Ballistic Gun 6 | 2 1 . 3 Ballistic Cannon 1 | . . . 1 Launcher . | . . . . Special Weapon . | . . . . Impact Weapon . | . . . . Slashing Weapon . | . . . . Piercing Weapon . | . . . . Special Melee Weapon . | . . . . Unidentified Prototypes 1 | . . . 1 Parts Lost 16 | . 3 . 13 Power 1 | . . . 1 Propulsion 6 | . 2 . 4 Utility 3 | . 1 . 2 Weapon 6 | . . . 6 Highest Loss Streak 11 | . 2 . 11 To Critical Strikes . | . . . . Average Backups 12 | 1 11 13 17 Power 2 | . 1 2 3 Propulsion 5 | . 5 5 6 Utility . | . . 1 . Weapon 4 | . 3 5 7 Tool/Special . | . . . . Unused Backups 12 | . 1 . 11 Power 4 | . 1 . 3 Propulsion 4 | . . . 4 Utility . | . . . . Weapon 4 | . . . 4 Tool/Special . | . . . . Average Slot Usage (%) 96 | . 98 100 90 Engine 12 | . 14 14 8 Wheel 24 | . 27 28 14 Device 4 | . 4 . 8 Storage 22 | . 21 28 22 Protection 2 | . 1 . 7 Energy Gun 1 | . . . 6 Ballistic Gun 25 | . 28 28 19 Peak Build Rating 25 | 6 8 8 25 Average Rating 10 | 5 7 8 18 On Entrance 5 | . 6 8 8 Avg Prop Armor Cover (%) . | . . . . Naked Turns . | . . . . Heaviest Build 108 | 12 93 93 108 Greatest Support 32 | 26 26 20 32 Greatest Overweight (x) 10 | . 8 4 10 Average Overweight (x) 4 | . 3 4 6 Largest Inventory Capacity 25 | 8 25 25 25 Average Capacity 23 | 7 23 25 25 Most Carried 22 | 2 13 13 22 Average Carried 12 | 1 11 13 17 Final Capacity 25 | 8 25 25 25 Final Carried 18 | 2 13 13 18 Class Distribution -------------------- 74% | Mutant 17% | Tank 8% | Gunner Dominant Class ---------------- Mutant | -10/Materials Mutant | -10/Subcaves Tank | -8/Materials Resources | -11 -10 -10 -8 ----------- Run | Yrd Mat Sub Mat Matter Collected 1162 | 193 465 137 367 Remotely . | . . . . Salvage Created 859 | . 459 . 400 Parts 60 | . 34 . 26 Haulers Intercepted 2 | . 2 . . Recyclers Shooed 3 | . 2 . 1 Parts Field Recycled . | . . . . Retrieved Matter . | . . . . Parts Self-Destructed . | . . . . Prevented . | . . . . Parts Restored . | . . . . Kills | -11 -10 -10 -8 ------- Run | Yrd Mat Sub Mat Combat Hostiles Destroyed 19 | . 11 . 8 Guns 19 | . 11 . 8 Classes Destroyed 9 | . 6 . 3 Worker 2 | . 1 . 1 Builder 2 | . . . 2 Hauler 2 | . 2 . . Recycler 1 | . . . 1 Operator 1 | . 1 . . Watcher 1 | . 1 . . Swarmer 9 | . 6 . 3 Grunt 9 | . 5 . 4 Sentry 1 | . . . 1 Best Kill Streak 5 | . 4 . 5 Combat Bots Only 3 | . 3 . 3 Max Kills in Single Turn 2 | . 1 . 2 Gunslinging . | . . . . Exploded . | . . . . Melee . | . . . . Uniques/NPCs Destroyed . | . . . . Combat | -11 -10 -10 -8 -------- Run | Yrd Mat Sub Mat Hostile Shots Fired 177 | . 84 7 86 Missed 53 | . 26 3 24 Hits 124 | . 58 4 62 Projectile 124 | . 58 4 62 Critical Strikes 2 | . . . 2 Damage Taken 2020 | . 674 80 1266 Core 428 | . 204 23 201 Absorbed by Shields . | . . . . Regen/Repaired (Parts) 182 | . 82 . 100 Core Remaining (%) 54 | 100 . 9 . Volleys Fired 108 | . 69 . 39 Largest 3 | . 2 . 3 Hottest 108 | . 40 . 108 Shots Fired 249 | . 138 . 111 Gun 247 | . 138 . 109 Cannon 2 | . . . 2 Launcher . | . . . . Special . | . . . . Kinetic 215 | . 138 . 77 Thermal 34 | . . . 34 Explosive . | . . . . Electromagnetic . | . . . . Robot Hit Streak 12 | . 8 . 12 Robot Miss Streak 6 | . 4 . 6 Penetration Max . | . . . . Secondary Targets 5 | . 3 . 2 Max Gunslinging Chain 1 | . 1 . 1 Shots Hit Robots 145 | . 81 . 64 Core Hits 49 | . 26 . 23 Critical Kills . | . . . . Critical Parts Destroyed 1 | . 1 . . Critical Strikes 4 | . 1 . 3 Burn 3 | . . . 3 Destroy 1 | . 1 . . Melee Attacks . | . . . . Impact . | . . . . Slashing . | . . . . Piercing . | . . . . Sneak Attacks . | . . . . Combat Hostiles . | . . . . Follow-up Attacks . | . . . . Damage Inflicted 2117 | . 1028 . 1089 Guns 2059 | . 1024 . 1035 Cannons 47 | . . . 47 Explosions . | . . . . Melee . | . . . . Ramming 11 | . 4 . 7 Kinetic 1771 | . 1024 . 747 Thermal 335 | . . . 335 Explosive . | . . . . Electromagnetic . | . . . . Impact . | . . . . Slashing . | . . . . Piercing . | . . . . Highest Corruption 1 | . 1 1 . Average Corruption 1 | . 1 1 . Corruption Purged . | . . . . Corruption Blocked . | . . . . Effects 13 | . 10 3 . Message Errors 3 | . 2 1 . Matter Fused 4 | . 4 . . Energy Discharges 4 | . 3 1 . Parts Fused 1 | . . 1 . Data Loss (minor) 1 | . 1 . . Overload Shots . | . . . . Overflow Damage . | . . . . Projectiles . | . . . . Explosions . | . . . . Melee . | . . . . Knockbacks . | . . . . Impact . | . . . . Kinetic . | . . . . Secondary . | . . . . Self-Inflicted Damage 5 | . 2 . 3 Shots . | . . . . Rammed 2 | . 1 . 1 Targets Rammed 2 | . 1 . 1 Kicked . | . . . . Crushed . | . . . . Highest Temperature 328 | . 9 . 328 Average Temperature 89 | . 3 . 108 Received Heat Transfer 588 | . 159 24 405 Siege Activations . | . . . . Martial Activations . | . . . . Shielding Activations . | . . . . Robots Disrupted . | . . . . Combat Hostiles . | . . . . Robots Corrupted . | . . . . Combat Hostiles . | . . . . Parts Fried . | . . . . Impact Corruptions . | . . . . Robots Melted . | . . . . Combat Hostiles . | . . . . Parts Melted 3 | . . . 3 Heat Transferred 962 | . . . 962 Parts Sabotaged . | . . . . Parts Stolen . | . . . . Parts Stripped . | . . . . Power Chain Reactions . | . . . . Alert | -11 -10 -10 -8 ------- Run | Yrd Mat Sub Mat Maximum Alert Level . | . . . . Low Security (%) 100 | 100 100 . 100 Level 1 . | . . . . Level 2 . | . . . . Level 3 . | . . . . Level 4 . | . . . . Level 5 . | . . . . High Security . | . . . . Max Security . | . . . . Peak Influence 105 | . 105 . 60 Initial . | . . . . Average 18 | . 21 . 12 Influence Increases 542 | . 341 . 201 Destroy 0b10 Robot/C 380 | . 220 . 160 Destroy 0b10 Robot/NC 45 | . 25 . 20 Destroy Leader 76 | . 56 . 20 Successful Hack 10 | . 10 . . Destroy Structure 1 | . . . 1 Lose Combat Pursuer 30 | . 30 . . Influence Decreases 542 | . 341 . 201 Time Decay 472 | . 311 . 161 Lost Part 70 | . 30 . 40 Squads Dispatched 2 | . 1 . 1 Investigation . | . . . . Extermination . | . . . . Reinforcement 2 | . 1 . 1 Assault . | . . . . Garrison . | . . . . Intercept . | . . . . Searches Triggered . | . . . . Construction Impeded . | . . . . Haulers Reinforced . | . . . . Active Scanning Responses . | . . . . Cargo Convoy Interrupts . | . . . . Stealth | -11 -10 -10 -8 --------- Run | Yrd Mat Sub Mat Distress Signals 3 | . 1 . 2 Communications Jammed . | . . . . Distress Signals . | . . . . Times Spotted 47 | . 25 2 20 Peak Tracking Total 7 | . 5 2 7 Tactical Retreats 1 | . 1 . . Traps | -11 -10 -10 -8 ------- Run | Yrd Mat Sub Mat Traps Triggered 2 | . 2 . . Indirectly . | . . . . Trap Hack Attempts . | . . . . Triggered . | . . . . Disarmed . | . . . . Reprogrammed . | . . . . Reused . | . . . . Traps Extracted . | . . . . Installed . | . . . . Triggered . | . . . . Machines | -11 -10 -10 -8 ---------- Run | Yrd Mat Sub Mat Machines Disabled . | . . . . Max in Single Turn . | . . . . Machines Repaired . | . . . . Machines Dismantled . | . . . . Machines Sabotaged . | . . . . Overloaded Fab Kills . | . . . . Hacking | -11 -10 -10 -8 --------- Run | Yrd Mat Sub Mat Machines Accessed 5 | . 4 . 1 Terminals 3 | . 3 . . Fabricators . | . . . . Repair Stations 2 | . 1 . 1 Recycling Units . | . . . . Scanalyzers . | . . . . Garrison Access . | . . . . Total Hacks 16 | . 12 . 4 Successful 11 | . 7 . 4 Failed 5 | . 5 . . Catastrophic . | . . . . Database Lockouts . | . . . . Manual . | . . . . Terminals 9 | . 9 . . Fabricators . | . . . . Repair Stations 7 | . 3 . 4 Recycling Units . | . . . . Scanalyzers . | . . . . Garrison Access . | . . . . Terminal Hacks 5 | . 5 . . Record 3 | . 3 . . Locate Traps 1 | . 1 . . Surveillance Status 1 | . 1 . . Fabricator Hacks . | . . . . Repair Station Hacks 6 | . 2 . 4 Scan Component 3 | . 1 . 2 Repair 3 | . 1 . 2 Recycling Unit Hacks . | . . . . Scanalyzer . | . . . . Garrison Access Hacks . | . . . . Unauthorized Hacks . | . . . . Terminals . | . . . . Fabricators . | . . . . Repair Stations . | . . . . Recycling Units . | . . . . Scanalyzers . | . . . . Garrison Access . | . . . . Data Cores Recovered 1 | . 1 . . Used . | . . . . Hacking Detections 5 | . 4 . 1 Full Trace Events 1 | . 1 . . Feedback Events . | . . . . Feedback Blocked . | . . . . Robot Schematics Acquired . | . . . . Robots Built . | . . . . Authchips . | . . . . Time . | . . . . Total Robot Build Rating . | . . . . Part Schematics Acquired . | . . . . Parts Built . | . . . . Authchips . | . . . . Time . | . . . . Total Part Build Rating . | . . . . Part Studies Acquired . | . . . . Parts Repaired 3 | . 1 . 2 Time 78 | . 26 . 52 Parts Recycled . | . . . . Recycled Matter . | . . . . Retrieved Matter . | . . . . Retrieved Components . | . . . . Parts Scanalyzed . | . . . . Part Schematics Acquired . | . . . . Parts Damaged . | . . . . Bothacking | -11 -10 -10 -8 ------------ Run | Yrd Mat Sub Mat Used RIF Installer . | . . . . Robots Hacked . | . . . . Non-combat . | . . . . Combat . | . . . . Robot Hacks Applied . | . . . . Relay Couplers Released . | . . . . Fabnet Peak Effective % . | . . . . Robots Rewired . | . . . . Allies Hacked . | . . . . Hacks Repelled . | . . . . Allies | -11 -10 -10 -8 -------- Run | Yrd Mat Sub Mat Total Allies . | . . . . Largest Group . | . . . . Highest-Rated Group . | . . . . Highest-Rated Ally . | . . . . Total Orders . | . . . . Ally Attacks . | . . . . Total Damage . | . . . . Kills . | . . . . Allies Corrupted . | . . . . Allies Melted . | . . . . Intel | -11 -10 -10 -8 ------- Run | Yrd Mat Sub Mat Active Infowar (turns) . | . . . . Robot Analysis Total . | . . . . Derelict Logs Recovered 1 | . . 1 . Drone Launches . | . . . . Drone Recoveries . | . . . . Exploration | -11 -10 -10 -8 ------------- Run | Yrd Mat Sub Mat Turns Passed 2817 | 46 1632 358 781 Spaces Moved 1619 | 41 1019 236 323 Core 4 | 4 . . . Treads . | . . . . Legs . | . . . . Wheels 1615 | 37 1019 236 323 Hover . | . . . . Flight . | . . . . Fastest Speed 50 | 50 80 140 135 Average Speed 141 | 86 133 140 176 Slowest Speed 230 | 90 200 140 230 Overloaded Moves . | . . . . Propulsion Burnouts . | . . . . Robots Hopped . | . . . . Potential Cave-ins . | . . . . Cave-ins Triggered . | . . . . Exploration Rate (%) 40 | 4 98 29 32 Regions Visited 3 Branch Regions 1 Pre-discovered Areas 2 | . . 2 . Known Exits Taken . | . . . . Unknown Exits Taken 3 | 1 1 1 . Scrap Searched . | . . . . Spaces Dug . | . . . . Terrain Destroyed . | . . . . Melee . | . . . . Projectile . | . . . . AOE . | . . . . Terrain Rammed . | . . . . Walls Destroyed . | . . . . Machines Disabled . | . . . . Actions | -11 -10 -10 -8 --------- Run | Yrd Mat Sub Mat Total 1919 | 48 1153 264 454 Wait 124 | . 38 29 57 Move 1616 | 40 1018 235 323 Hop . | . . . . Pick Up 23 | 2 11 . 10 Fast Attach 13 | 6 2 . 5 Attach 11 | . 2 . 9 Detach 1 | . . . 1 Swap 15 | . 8 . 7 Drop 6 | . 4 . 2 Fire 108 | . 69 . 39 Melee . | . . . . Ram 2 | . 1 . 1 Kick . | . . . . Crush . | . . . . Escape Stasis . | . . . . Rewire . | . . . . Trap . | . . . . Miscellaneous . | . . . . Route ------- -11/Scrapyard -10/Materials (discovered 5 exits: [*Mat x3] / [*Min] / [*Sub]) -10/Subcaves -8/Materials History --------- Turn | Location | Event 15 | -11/Scrapyard | Discovered new exit (range 16) 47 | -11/Scrapyard | Entered Materials 136 | -10/Materials | Discovered new exit (range 9) 232 | -10/Materials | Discovered new exit (range 16) 265 | -10/Materials | Core integrity fell below 50% 318 | -10/Materials | Build established: Mutant 839 | -10/Materials | Core integrity fell below 20% 967 | -10/Materials | Discovered new exit (range 16) 1096 | -10/Materials | Repaired Assault Rifle 1291 | -10/Materials | Discovered new exit (range 16) 1668 | -10/Materials | Discovered new exit (range 9) 1679 | -10/Materials | Entered Subcaves 1680 | -10/Subcaves | Approached by a straggling Scientist 1696 | -10/Subcaves | Shifting Twisted Machinery released Mak. Hacking Suite 1696 | -10/Subcaves | Shifting Twisted Machinery released Mak. System Shield 1760 | -10/Subcaves | Curiously followed by a Cobbler waking with a query about "LVR3C" 1807 | -10/Subcaves | Learned location of Zion (-6) 1959 | -10/Subcaves | Discovered new exit (range 11) 1973 | -10/Subcaves | Met a Zionite searching for "candidates" 2021 | -10/Subcaves | Ambushed by Subdwellers from Twisted Machinery 2037 | -10/Subcaves | Entered Materials 2037 | -8/Materials | Evolved 4 slots: Utility x3, Weapon x1 2323 | -8/Materials | Repaired Assault Rifle 2350 | -8/Materials | Repaired Hcp. Battery 2620 | -8/Materials | Build established: Tank 2818 | -8/Materials | Self-destructed Last Messages --------------- 02794_ Med. Armor Plating destroyed. 02794_ Critical hit (Blast). 02794_ W-25 Informer sends out distress signal. 02796_ Imp. Ion Engine destroyed. 02802_ U-05 Engineer builds a Wall. 02804_ Knocked back. 02806_ Penetrated by Slug. 02806_ Assault Rifle destroyed. 02806_ Wheel destroyed. 02806_ Field Laser destroyed. 02808_ Penetrated by Slug. 02808_ Imp. Heat Sink destroyed. 02810_ Assault Rifle destroyed. 02810_ Knocked back. [Achievement: Hydra] 02812_ Penetrated by Slug. 02812_ Com. Wheel destroyed. 02812_ Fusion Modulator explodes. 02815_ Assault Rifle destroyed. 02816_ U-05 Engineer destroyed. Map ----- +----------------------------------------------------+ | ????????????????????????????????????????????# = | | ????????????????????????????????????????????# | | ????????????????????????????????????????????# = | | ????????????????????????????????????????????# ## | | ????????????????????????????????????????????# #? | | ????????????????????????????????????????????# ## | | ????????????????????????????????????????????# # | | ????????????????????????????????????????????# # | | ????????????????????????????????????????????# # | | ????????????????????????????????????????????# # | | ????????????????####????????????????????????# # | | ?????????????? ###???######????????????# + | | ????????????? ?? ?############ # | | ?????????????? a ?? ## | | ???????????????# # | | ???????????????# k # | | ???????????????# %H %""" """ """ """ """ # | | ???????????????#! g Yg!""" Y""" """ """ """ # | | ??????????###### *%""" """ """ """ """ # | | ?????????? Y *]! # | | ????????????# *]! # | | ????????????# ]^! """ """ """ + | | ????????????# ! % """ """ """ # | | ????????????# " """ """ " " ## | | ????????????# %[ % "R" # | | ????????????# % %@ """ # | | ????????????# % # | | ????????????# % =!| ! # | | ????????????# #;####; = # | | ????????????# ##+##+##????; ;;;;;;############### | | ????????????#?????????????; ; #?????????????? | | ??????????????????????????; ; ##?????????????? | | ??????????????????????????; ; #?????????????? | | ??????????????????????????; ; ##?????????????? | | ??????????????????????????# ; #??????????????? | | ??????????????????????????# ; #??????????????? | | ??????????????????????????# ;##??????????????? | | ??????????????????????????##;;;;##???????????????? | | ????????????????????????????#####????????????????? | | ?????????????????????????????????????????????????? | | ?????????????????????????????????????????????????? | | ?????????????????????????????????????????????????? | | ?????????????????????????????????????????????????? | | ?????????????????????????????????????????????????? | | ?????????????????????????????????????????????????? | | ?????????????????????????????????????????????????? | | ?????????????????????????????????????????????????? | | ?????????????????????????????????????????????????? | | ?????????????????????????????????????????????????? | | ?????????????????????????????????????????????????? | +----------------------------------------------------+ Best States ------------- Heat Dissipation 45 Energy Generation 12 Energy Capacity 515 Matter Stores 330 Matter Capacity 450 Sight Range 16 Terrain Scan Density 10 Armor Coverage 225 Evasion (%) 44 Targeting Accuracy 6 Item Schematics ----------------- None Robot Schematics ------------------ None Fabricated ------------ Nothing Repaired ---------- Assault Rifle | 18% | -10/Materials Assault Rifle | 18% | -8/Materials Hcp. Battery | 60% | -8/Materials Studied --------- None Alien Tech Used ----------------- None Achievements -------------- Hydra Challenges ------------ None Game ------ Seed DispersalSpreadDoomcannon Manual? 0 Play Time 00:21:09 Cumulative 307.0 hours Start 2026.01.04 @ 13:44:46 End 2026.01.04 @ 14:04:03 Sessions 1 Manual Loads 0 Difficulty Rogue Special Mode None Game No. 264 Rogue 252 Adventurer 12 Explorer 0 Win Type - Total 1 Types 1/0/0/0/0/0/0/0/0/0 Lore% 32 Gallery% 44 Achievement% 22 Wizard Run 0 Options --------- Layout 1 ASCII 0 Keyboard 0 Movement Mouse Keybinds 0 Fullscreen 1 Font 32/SmallcapsGlow Map View 77x35 Zoom Use 0% Tactical HUD 1 Map Filters NONE Filters NONE Steam 1 RUN: aa24b933-b3a5-438f-a1ea-c344c03e754a